Cogmind - Beta 9.1 @@@ ROGUE MODE // 2019.10.28 @ 19:00:42 Player: jsrco Result: Destroyed by G-34 Mercenary with Small Laser Performance ------------- Evolutions (0) 0 Regions Visited (1) 200 Robots Destroyed (10) 50 Value Destroyed (219) 219 Prototype IDs (2) 40 Alien Tech Used (0) 0 Bonus (0) 0 TOTAL SCORE: 509 Bonus ------- None Cogmind --------- Core Integrity 0/250 Matter 198/300 Energy 100/100 System Corruption 1% Temperature Cool (6) Location -10/Materials Parts ------- Power (1) Propulsion (2) Utility (2) Medium Storage Unit Visual Processing Unit Weapon (2) Hammer Inventory (8) Ion Engine Hover Unit Targeting Computer ECM Suite Light Assault Rifle Light Assault Rifle Grenade Launcher Peak State ------------ Power Light Nuclear Core Propulsion Light Treads Light Treads Utility Medium Storage Unit Visual Processing Unit Weapon Grenade Launcher Datajack Inventory Ion Engine Light Ion Engine Hover Unit High-capacity Battery Light Assault Rifle Light Assault Rifle Light Assault Rifle Light Assault Rifle [Rating: 10] Favorites ----------- Power Light Ion Engine Engine Light Ion Engine Power Core Light Nuclear Core Propulsion Light Treads Treads Light Treads Utility Medium Storage Unit Storage Medium Storage Unit Processor Visual Processing Unit Weapon Grenade Launcher Energy Gun EM Pulse Gun Ballistic Gun Light Assault Rifle Launcher Grenade Launcher Impact Weapon Hammer Special Melee Weapon Datajack Build | -11 -10 ------- Run | Scr Mat Slots Evolved . | . . Power . | . . Propulsion . | . . Utility . | . . Weapon . | . . Parts Attached 13 | 6 7 Power 2 | 1 1 Engine 1 | 1 . Core 1 | . 1 Reactor . | . . Propulsion 2 | 2 . Treads 2 | 2 . Leg . | . . Wheel . | . . Hover . | . . Flight . | . . Utility 3 | 1 2 Device . | . . Storage 2 | 1 1 Processor 1 | . 1 Hackware . | . . Protection . | . . Artifact . | . . Weapon 6 | 2 4 Energy Gun 1 | 1 . Energy Cannon . | . . Ballistic Gun 1 | 1 . Ballistic Cannon . | . . Launcher 2 | . 2 Special Weapon . | . . Impact Weapon 1 | . 1 Slashing Weapon . | . . Piercing Weapon . | . . Special Melee Weapon 1 | . 1 Unidentified Prototypes . | . . Parts Lost 4 | . 4 Power 1 | . 1 Propulsion 2 | . 2 Utility . | . . Weapon 1 | . 1 Highest Loss Streak 4 | . 4 Average Slot Usage (%) 92 | . 92 Engine 8 | . 8 Core 4 | . 4 Treads 26 | . 26 Storage 14 | . 14 Processor 10 | . 10 Energy Gun 2 | . 2 Launcher 10 | . 10 Impact Weapon 1 | . 1 Special Melee Weapon 10 | . 10 Naked Turns . | . . Heaviest Build 19 | 10 19 Greatest Support 40 | 40 40 Greatest Overweight (x) 3 | . 3 Average Overweight (x) . | . . Largest Inventory Capacity 10 | 6 10 Average Capacity 7 | 4 7 Most Carried 8 | 2 8 Average Carried 5 | . 6 Final Capacity 8 | 6 8 Final Carried 7 | 1 7 Class Distribution -------------------- 100% | Mutant Dominant Class ---------------- Mutant | -10/Materials Resources | -11 -10 ----------- Run | Scr Mat Matter Collected 339 | 265 74 Remotely . | . . Salvage Created 246 | 84 162 Parts 17 | 1 16 Haulers Intercepted . | . . Recyclers Shooed . | . . Parts Field Recycled . | . . Retrieved Matter . | . . Parts Self-Destructed . | . . Prevented . | . . Kills | -11 -10 ------- Run | Scr Mat Combat Hostiles Destroyed 7 | . 7 Guns 2 | . 2 AOE 5 | . 5 Classes Destroyed 5 | 1 4 Builder 1 | . 1 Recycler 1 | 1 . Watcher 1 | . 1 Swarmer 3 | . 3 Grunt 4 | . 4 Best Kill Streak 3 | 1 3 Combat Bots Only 3 | . 3 Max Kills in Single Turn 2 | 1 2 Gunslinging . | . . Exploded 2 | . 2 Melee . | . . Uniques/NPCs Destroyed . | . . Combat | -11 -10 -------- Run | Scr Mat Damage Taken 744 | . 744 Core 253 | . 253 Absorbed by Shields . | . . Core Remaining (%) 100 | 100 . Volleys Fired 19 | 6 13 Largest 2 | 2 2 Hottest 70 | 60 70 Shots Fired 25 | 7 18 Gun 12 | 7 5 Cannon . | . . Launcher 13 | . 13 Special . | . . Kinetic 6 | 6 . Thermal . | . . Explosive 13 | . 13 Electromagnetic 6 | 1 5 Robot Hit Streak 13 | 2 13 Robot Miss Streak 1 | 1 1 Penetration Max . | . . Secondary Targets . | . . Shots Hit Robots 23 | 3 20 Core Hits 18 | 2 16 Critical Hits . | . . Critical Kills . | . . Critical Parts Destroyed . | . . Melee Attacks 9 | . 9 Impact 7 | . 7 Slashing . | . . Piercing . | . . Sneak Attacks 1 | . 1 Combat Hostiles . | . . Follow-up Attacks . | . . Damage Inflicted 672 | 24 648 Guns 95 | 24 71 Cannons . | . . Explosions 507 | . 507 Melee 64 | . 64 Ramming 6 | . 6 Kinetic 24 | 24 . Thermal . | . . Explosive 507 | . 507 Electromagnetic 71 | . 71 Impact 64 | . 64 Slashing . | . . Piercing . | . . Highest Corruption 1 | . 1 Average Corruption 1 | . 1 Corruption Purged . | . . Effects 2 | . 2 Message Errors 1 | . 1 Energy Discharges 1 | . 1 Overload Shots . | . . Overflow Damage . | . . Projectiles . | . . Explosions . | . . Melee . | . . Knockbacks . | . . Impact . | . . Kinetic . | . . Secondary . | . . Self-Inflicted Damage 63 | . 63 Shots 6 | . 6 Rammed 1 | . 1 Targets Rammed 1 | . 1 Kicked . | . . Crushed . | . . Highest Temperature 42 | 20 42 Average Temperature 12 | 15 12 Received Heat Transfer 369 | . 369 Siege Activations . | . . Robots Corrupted . | . . Combat Hostiles . | . . Parts Fried 1 | . 1 Impact Corruptions . | . . Robots Melted . | . . Combat Hostiles . | . . Parts Melted . | . . Heat Transferred . | . . Parts Sabotaged . | . . Parts Stolen . | . . Parts Stripped . | . . Power Chain Reactions . | . . Missiles Intercepted . | . . Alert | -11 -10 ------- Run | Scr Mat Peak Influence 169 | 5 169 Average Influence 57 | 3 68 Maximum Alert Level . | . . Low Security (%) 100 | . . Level 1 . | . . Level 2 . | . . Level 3 . | . . Level 4 . | . . Level 5 . | . . High Security . | . . Max Security . | . . Squads Dispatched 2 | . 2 Investigation 2 | . 2 Extermination . | . . Reinforcement . | . . Assault . | . . Garrison . | . . Intercept . | . . Construction Impeded . | . . Haulers Reinforced . | . . Stealth | -11 -10 --------- Run | Scr Mat Distress Signals . | . . Communications Jammed . | . . Distress Signals . | . . Times Spotted 12 | . 12 Peak Tracking Total 3 | . 3 Tactical Retreats . | . . Traps | -11 -10 ------- Run | Scr Mat Traps Triggered 1 | . 1 Indirectly . | . . Trap Hack Attempts . | . . Triggered . | . . Disarmed . | . . Reprogrammed . | . . Reused . | . . Traps Extracted . | . . Installed . | . . Triggered . | . . Machines | -11 -10 ---------- Run | Scr Mat Machines Disabled . | . . Max in Single Turn . | . . Machines Sabotaged . | . . Garrisons Compromised . | . . Overloaded Fab Kills . | . . Fab Network Shutdowns . | . . Hacking | -11 -10 --------- Run | Scr Mat Machines Accessed 4 | . 4 Terminals 3 | . 3 Fabricators . | . . Repair Stations 1 | . 1 Recycling Units . | . . Scanalyzers . | . . Garrison Access . | . . Total Hacks 20 | . 20 Successful 12 | . 12 Failed 8 | . 8 Catastrophic 1 | . 1 Database Lockouts . | . . Manual . | . . Terminals 15 | . 15 Fabricators . | . . Repair Stations 5 | . 5 Recycling Units . | . . Scanalyzers . | . . Garrison Access . | . . Terminal Hacks 10 | . 10 Record 7 | . 7 Prototype ID Bank 1 | . 1 Branch Access Points 1 | . 1 Recall Assault 1 | . 1 Fabricator Hacks . | . . Repair Station Hacks 2 | . 2 Scan Component 1 | . 1 Repair 1 | . 1 Recycling Unit Hacks . | . . Scanalyzer . | . . Garrison Access Hacks . | . . Unauthorized Hacks . | . . Terminals . | . . Fabricators . | . . Repair Stations . | . . Recycling Units . | . . Scanalyzers . | . . Garrison Access . | . . Data Cores Recovered . | . . Used . | . . Hacking Detections 4 | . 4 Full Trace Events 4 | . 4 Feedback Events . | . . Feedback Blocked . | . . Robot Schematics Acquired . | . . Robots Built . | . . Matter . | . . Time . | . . Total Robot Build Rating . | . . Part Schematics Acquired . | . . Parts Built . | . . Matter . | . . Time . | . . Total Part Build Rating . | . . Parts Repaired 1 | . 1 Time 13 | . 13 Parts Recycled . | . . Recycled Matter . | . . Retrieved Matter . | . . Retrieved Components . | . . Parts Scanalyzed . | . . Part Schematics Acquired . | . . Parts Damaged . | . . Bothacking | -11 -10 ------------ Run | Scr Mat Used RIF Installer . | . . Robots Hacked 2 | . 2 Non-combat 2 | . 2 Combat . | . . Robot Hacks Applied 2 | . 2 parse_system 1 | . 1 no_distress 1 | . 1 Relay Couplers Released . | . . Robots Rewired . | . . Allies Hacked . | . . Hacks Repelled . | . . Allies | -11 -10 -------- Run | Scr Mat Total Allies . | . . Largest Group . | . . Highest-Rated Group . | . . Highest-Rated Ally . | . . Total Orders . | . . Ally Attacks . | . . Total Damage . | . . Kills . | . . Allies Corrupted . | . . Allies Melted . | . . Intel | -11 -10 ------- Run | Scr Mat Robot Analysis Total . | . . Derelict Logs Recovered . | . . Drone Launches . | . . Drone Recoveries . | . . Exploration | -11 -10 ------------- Run | Scr Mat Turns Passed 719 | 122 597 Spaces Moved 388 | 65 323 Core 6 | 5 1 Treads 382 | 60 322 Legs . | . . Wheels . | . . Hover . | . . Flight . | . . Fastest Speed 50 | 50 160 Average Speed 158 | 151 160 Slowest Speed 200 | 160 200 Overloaded Moves . | . . Propulsion Burnouts . | . . Robots Hopped . | . . Cave-ins Triggered . | . . Exploration Rate (%) 33 | 5 62 Regions Visited 1 Branch Regions . Pre-discovered Areas . | . . Known Exits Taken . | . . Unknown Exits Taken 1 | 1 . Scrap Searched . | . . Spaces Dug . | . . Terrain Destroyed 56 | . 56 Melee . | . . Projectile . | . . AOE 56 | . 56 Actions | -11 -10 --------- Run | Scr Mat Total 455 | 83 372 Wait . | . . Move 387 | 64 323 Hop . | . . Pick Up 20 | 7 13 Fast Attach 1 | . 1 Attach 8 | 6 2 Detach . | . . Swap 4 | . 4 Drop 6 | . 6 Fire 19 | 6 13 Melee 9 | . 9 Ram . | . . Kick . | . . Crush 1 | . 1 Escape Stasis . | . . Rewire . | . . Trap . | . . Miscellaneous . | . . Route ------- -11/Scrapyard -10/Materials (discovered 3 exits: [*Mat] / *Min x2) History --------- Turn | Location | Event 33 | -11/Scrapyard | Discovered new exit (range 15) 123 | -11/Scrapyard | Entered Materials 310 | -10/Materials | Build established: Mutant 337 | -10/Materials | Repaired Grenade Launcher 409 | -10/Materials | Discovered new exit (range 3) 426 | -10/Materials | Discovered new exit (range 18) 464 | -10/Materials | Identified exit to Mines 708 | -10/Materials | Core integrity fell below 50% 715 | -10/Materials | Core integrity fell below 20% 720 | -10/Materials | Destroyed by G-34 Mercenary with Small Laser Last Messages --------------- Downloading prototype IDs... Cld. Ion Engine Adv. Beam Cannon ALERT: Suspicious activity at Terminal M007. Dispatching Investigation squad. Acquired Targeting Computer. Dropped Lgt. Ion Engine. Dropped Hcp. Battery. Acquired Hammer. Only a single melee weapon may be active at a time, Datajack automatically deactivated. (Secondary inactive melee weapons have a chance to conduct follow-up attacks, see the manual.) Extracted 20 energy. HEPRFI7FNHSTJXYPY7VTU2 Lgt. Nuclear Core destroyed. K-01 Serf collects debris. Door malfunctions. Lgt. Treads destroyed. Datajack destroyed. [Achievement: First Step to Greatness] Map ----- +----------------------------------------------------+ | ??# ########????????????## #########?????????? | | ### # #????????????# """#??????????????? | | # # #????????????# "#??????????????? | | " #% # """ #????????????# !"#??????????????? | | " +* + """ #????????????# > ""#??????????????? | | " # # """ #????????????# !"#??????????????? | | " # # #?????######## "#??????????????? | | # ###########??#! / !# """#??????????????? | | ### #???? #??# ## ####??????????????? | | # #??? #??# " " #????????????????? | | # #?? #??# "Y" #????????????????? | | + +? #??# """ = % #????????????????? | | # # #??# ##????????????????? | | # # #??#####+# % #????????????????? | | ### # #????# #????????????????? | | # # #????# #????????????????? | | ###########????# #????????????????? | | # ##?????????????# #????????????????? | | %/* ##?????######### #??????????#?????? | | = # #????# ^ ######## #?????? | | #????# #?????? | | # #????# ^ """ #?????? | | ### ###?#### ^^ """ #?????? | | # #??##!! """ ########### ##?????? | | # #??#! *| g ""#????????????????? | | + #??#! |! g @ g T"#????????????????? | | " # #??#! |! ""#????????????????? | | " # #??#! ###????????????????? | | " # #???#!! #??????????????????? | | #######???#### ######/##### #??????????????????? | | ?????????????# #?# # #??????????????????? | | ?????????????# #?# # #??????????????????? | | ??????????####+### # #??????????????????? | | ??????????# ! # """ # ??????????????????? | | ??????????# # """ # ?????????????????? | | ??????????# * # """ # ????????????????? | | ??????????# """ # """ ########???????????????? | | ??????????# """ # """ #??????????????????????? | | ??????????# """ # #??????????????????????? | | ??????????##############?##??????????????????????? | | ?????????????????????????????????????????????????? | | ?????????????????????????????????????????????????? | | | | | | | | | | | | | | | | | +----------------------------------------------------+ Best States ------------- Heat Dissipation 25 Energy Generation 14 Energy Capacity 160 Matter Stores 300 Matter Capacity 300 Sight Range 18 Terrain Scan Density 10 Evasion (%) 40 Recoil Reduction 2 Item Schematics ----------------- None Robot Schematics ------------------ None Fabricated ------------ Nothing Alien Tech Used ----------------- None Achievements -------------- Crack Shot First Step to Greatness Let's See Who's Tougher Part-time Mechanic Challenges ------------ None Game ------ Seed GravitonLegPurifier Manual? 0 Play Time 00:10:35 Cumulative 1.1 hours Start 2019.10.28 @ 18:38:36 End 2019.10.28 @ 19:00:42 Sessions 3 Manual Loads 0 Difficulty Rogue Special Mode None Game No. 3 Rogue 3 Adventurer 0 Explorer 0 Win Type - Total 0 Types 0/0/0/0/0/0/0 Lore% 1 Gallery% 4 Achievement% 2 Wizard Run 0 Options --------- ASCII 0 Keyboard 0 Movement Mouse Keybinds 0 Fullscreen 1 Font 18/X11Bold Map View 76x50 Tactical HUD 0 Map Filters NONE Filters NONE Steam 1 RUN: 14d03fcd-6a70-4b32-9d33-11bf41d589bf